[Event "*** Titled Tuesday Blitz"]
[Site "Chess.com"]
[Date "2020.05.12"]
[Round "4"]
[White "wanyaland"]
[Black "szefru"]
[Result "1-0"]
[WhiteElo "2330"]
[BlackElo "2096"]
[TimeControl "180+1"]
[EndTime "10:39:07 PDT"]
[Termination "wanyaland won by resignation"]

1. d4 {[%clk 0:03:00.9]} 1... Nf6 {[%clk 0:02:58.4]} 2. c4 {[%clk 0:03:01.8]}
2... g6 {[%clk 0:02:58.1]} 3. Nc3 {[%clk 0:02:46.6]} 3... Bg7 {[%clk 0:02:58]}
4. e4 {[%clk 0:02:46.1]} 4... d6 {[%clk 0:02:57.9]} 5. f3 {[%clk 0:02:46]} 5...
O-O {[%clk 0:02:57.2]} 6. Nge2 {[%clk 0:02:46.6]} 6... c5 {[%clk 0:02:55.5]} 7.
Be3 {[%clk 0:02:47.5]} 7... cxd4 {[%clk 0:02:46.5]} 8. Nxd4 {[%clk 0:02:48.4]}
8... Nc6 {[%clk 0:02:46]} 9. Qd2 {[%clk 0:02:48.6]} 9... Nxd4 {[%clk 0:02:29.9]}
10. Bxd4 {[%clk 0:02:47.5]} 10... Be6 {[%clk 0:02:30.5]} 11. Be2 {[%clk
0:02:43.4]} 11... Rc8 {[%clk 0:02:23.6]} 12. b3 {[%clk 0:02:42.6]} 12... b6
{[%clk 0:02:18.4]} 13. O-O {[%clk 0:02:41]} 13... h5 {[%clk 0:02:08.8]} 14. Rac1
{[%clk 0:02:39.1]} 14... Kh7 {[%clk 0:02:08.2]} 15. Rfd1 {[%clk 0:02:38.2]}
15... Bh6 {[%clk 0:02:03.5]} 16. f4 {[%clk 0:02:33]} 16... Bg4 {[%clk
0:01:56.5]} 17. Rf1 {[%clk 0:02:25.2]} 17... Bxe2 {[%clk 0:01:55.2]} 18. Qxe2
{[%clk 0:02:24.7]} 18... Nd7 {[%clk 0:01:48.4]} 19. Rcd1 {[%clk 0:02:20.3]}
19... Qe8 {[%clk 0:01:37.9]} 20. e5 {[%clk 0:02:18.9]} 20... dxe5 {[%clk
0:01:35]} 21. fxe5 {[%clk 0:02:19.8]} 21... Nc5 {[%clk 0:01:27.1]} 22. Nd5
{[%clk 0:02:17.4]} 22... Ne6 {[%clk 0:01:23.5]} 23. Bb2 {[%clk 0:02:15.2]} 23...
Qc6 {[%clk 0:01:06.9]} 24. Kh1 {[%clk 0:02:11.9]} 24... Qb7 {[%clk 0:01:02.9]}
25. Rf2 {[%clk 0:02:09.2]} 25... Kg8 {[%clk 0:00:47.7]} 26. Rdf1 {[%clk
0:02:08]} 26... Bg7 {[%clk 0:00:46.1]} 27. Qe4 {[%clk 0:02:03.5]} 27... a6
{[%clk 0:00:45.6]} 28. Qe3 {[%clk 0:01:54.5]} 28... b5 {[%clk 0:00:42.5]} 29.
Qb6 {[%clk 0:01:52.1]} 29... Qxb6 {[%clk 0:00:39.9]} 30. Nxb6 {[%clk 0:01:51.7]}
30... Rc7 {[%clk 0:00:39.5]} 31. Nd5 {[%clk 0:01:50.9]} 31... Rb7 {[%clk
0:00:39.5]} 32. cxb5 {[%clk 0:01:46.9]} 32... axb5 {[%clk 0:00:40.4]} 33. Rc2
{[%clk 0:01:46.6]} 33... Ng5 {[%clk 0:00:39.5]} 34. Rfc1 {[%clk 0:01:42.1]}
34... e6 {[%clk 0:00:37.9]} 35. Nf6+ {[%clk 0:01:40.1]} 35... Bxf6 {[%clk
0:00:38.1]} 36. exf6 {[%clk 0:01:41]} 36... Rd7 {[%clk 0:00:38.8]} 37. h3 {[%clk
0:01:39.4]} 37... Ne4 {[%clk 0:00:38.7]} 38. Kh2 {[%clk 0:01:38.3]} 38... Rfd8
{[%clk 0:00:38.5]} 39. Re2 {[%clk 0:01:32]} 39... Ng5 {[%clk 0:00:36.4]} 40. Rc5
{[%clk 0:01:29.9]} 40... Nh7 {[%clk 0:00:34.5]} 41. Rxb5 {[%clk 0:01:28.9]}
41... Nf8 {[%clk 0:00:34.7]} 42. a4 {[%clk 0:01:27.6]} 42... Rd3 {[%clk
0:00:32.9]} 43. a5 {[%clk 0:01:25.8]} 43... Nd7 {[%clk 0:00:28.5]} 44. b4 {[%clk
0:01:21.6]} 44... Ra8 {[%clk 0:00:22.7]} 45. Rb7 {[%clk 0:01:21]} 45... Nf8
{[%clk 0:00:19.8]} 46. Rc2 {[%clk 0:01:18.7]} 46... Rb3 {[%clk 0:00:19.5]} 47.
Be5 {[%clk 0:01:16.6]} 47... Rxa5 {[%clk 0:00:19.2]} 48. bxa5 {[%clk 0:01:12.6]}
48... Rxb7 {[%clk 0:00:18.9]} 49. Rc8 {[%clk 0:01:13.1]} 49... Rd7 {[%clk
0:00:17.4]} 50. a6 {[%clk 0:01:12.2]} 50... g5 {[%clk 0:00:15.6]} 51. Bd6 {[%clk
0:01:05.3]} 51... Rxd6 {[%clk 0:00:15.7]} 52. a7 {[%clk 0:01:03.8]} 52... Kh7
{[%clk 0:00:16.4]} 53. Rxf8 {[%clk 0:01:02.2]} 53... Kg6 {[%clk 0:00:16]} 54.
a8=Q {[%clk 0:01:01.6]} 54... Kxf6 {[%clk 0:00:16.7]} 55. Qf3+ {[%clk
0:01:00.2]} 55... Ke5 {[%clk 0:00:16.2]} 56. Qxf7 {[%clk 0:01:00.9]} 56... Kd5
{[%clk 0:00:15.5]} 1-0

[Event "*** Titled Tuesday Blitz"]
[Site "Chess.com"]
[Date "2020.05.12"]
[Round "4"]
[White "swimmerchess"]
[Black "walkingcreep"]
[Result "1-0"]
[WhiteElo "2837"]
[BlackElo "2664"]
[TimeControl "180+1"]
[EndTime "10:39:08 PDT"]
[Termination "swimmerchess won on time"]

1. e4 {[%clk 0:03:00.9]} 1... d6 {[%clk 0:02:59.4]} 2. d4 {[%clk 0:03:01]} 2...
Nf6 {[%clk 0:02:59.8]} 3. Nc3 {[%clk 0:03:01.7]} 3... e5 {[%clk 0:03:00]} 4. Nf3
{[%clk 0:03:01.9]} 4... Nbd7 {[%clk 0:02:59.8]} 5. g4 {[%clk 0:03:02.5]} 5...
Nxg4 {[%clk 0:03:00]} 6. Rg1 {[%clk 0:03:02.4]} 6... Ngf6 {[%clk 0:02:59.8]} 7.
Bc4 {[%clk 0:03:02.1]} 7... h6 {[%clk 0:03:00.3]} 8. Be3 {[%clk 0:03:01]} 8...
c6 {[%clk 0:03:00.2]} 9. Qd3 {[%clk 0:02:58.7]} 9... b5 {[%clk 0:02:58.9]} 10.
Bb3 {[%clk 0:02:56.8]} 10... Qa5 {[%clk 0:02:59.1]} 11. dxe5 {[%clk 0:02:53.3]}
11... dxe5 {[%clk 0:02:54.6]} 12. O-O-O {[%clk 0:02:50.4]} 12... Ba6 {[%clk
0:02:49.1]} 13. Qd2 {[%clk 0:02:18.8]} 13... O-O-O {[%clk 0:02:18.4]} 14. Bxf7
{[%clk 0:01:47.7]} 14... b4 {[%clk 0:02:15.2]} 15. Ne2 {[%clk 0:01:42.5]} 15...
Nxe4 {[%clk 0:02:04]} 16. Qe1 {[%clk 0:01:42.1]} 16... g5 {[%clk 0:01:53.4]} 17.
Ng3 {[%clk 0:01:35.6]} 17... Nxg3 {[%clk 0:01:23.4]} 18. Rxg3 {[%clk 0:01:33.2]}
18... Bg7 {[%clk 0:01:11.6]} 19. h4 {[%clk 0:01:30.6]} 19... Rhf8 {[%clk
0:01:06.9]} 20. Be6 {[%clk 0:01:30.2]} 20... Rfe8 {[%clk 0:00:50.6]} 21. Bb3
{[%clk 0:01:09.4]} 21... Nc5 {[%clk 0:00:41.2]} 22. Kb1 {[%clk 0:00:41.5]} 22...
Nxb3 {[%clk 0:00:31.8]} 23. axb3 {[%clk 0:00:42.4]} 23... Rxd1+ {[%clk
0:00:31.6]} 24. Qxd1 {[%clk 0:00:42.3]} 24... Rd8 {[%clk 0:00:31.9]} 25. Qg1
{[%clk 0:00:40.6]} 25... Be2 {[%clk 0:00:22.9]} 26. Nd2 {[%clk 0:00:37.5]} 26...
e4 {[%clk 0:00:18.5]} 27. Qe1 {[%clk 0:00:36.2]} 27... Qe5 {[%clk 0:00:18]} 28.
Qc1 {[%clk 0:00:28.9]} 28... g4 {[%clk 0:00:14.7]} 29. Rg1 {[%clk 0:00:25.5]}
29... h5 {[%clk 0:00:14.5]} 30. Re1 {[%clk 0:00:25.3]} 30... Bf3 {[%clk
0:00:10]} 31. Nc4 {[%clk 0:00:24.5]} 31... Qe7 {[%clk 0:00:06.2]} 32. Bg5 {[%clk
0:00:23.2]} 32... Bf6 {[%clk 0:00:06.5]} 33. Bxf6 {[%clk 0:00:22.4]} 33... Qxf6
{[%clk 0:00:07.4]} 34. Qe3 {[%clk 0:00:22.8]} 34... Qd4 {[%clk 0:00:06.3]} 35.
Qg5 {[%clk 0:00:20.6]} 35... Qxf2 {[%clk 0:00:06.2]} 36. Rc1 {[%clk 0:00:19.8]}
36... Qd4 {[%clk 0:00:05.1]} 37. Qxh5 {[%clk 0:00:19]} 37... g3 {[%clk 0:00:05]}
38. Qg5 {[%clk 0:00:19.3]} 38... g2 {[%clk 0:00:05.2]} 39. h5 {[%clk 0:00:18.6]}
39... Qd1 {[%clk 0:00:04.6]} 40. h6 {[%clk 0:00:10.7]} 40... Qxc1+ {[%clk
0:00:03.3]} 41. Qxc1 {[%clk 0:00:10.8]} 1-0

[Event "*** Titled Tuesday Blitz"]
[Site "Chess.com"]
[Date "2020.05.12"]
[Round "4"]
[White "Zurability"]
[Black "Kislov_Oleg"]
[Result "1-0"]
[WhiteElo "2647"]
[BlackElo "2341"]
[TimeControl "180+1"]
[EndTime "10:39:09 PDT"]
[Termination "Zurability won by resignation"]

1. c4 {[%clk 0:03:00.9]} 1... e5 {[%clk 0:02:57.8]} 2. Nc3 {[%clk 0:03:00.9]}
2... Nf6 {[%clk 0:02:56.8]} 3. Nf3 {[%clk 0:03:00.7]} 3... Nc6 {[%clk
0:02:56.8]} 4. d4 {[%clk 0:03:00.9]} 4... exd4 {[%clk 0:02:56.4]} 5. Nxd4 {[%clk
0:03:01.8]} 5... Bb4 {[%clk 0:02:53.6]} 6. Nxc6 {[%clk 0:03:02.1]} 6... bxc6
{[%clk 0:02:48.2]} 7. Bd2 {[%clk 0:03:01]} 7... O-O {[%clk 0:02:46.6]} 8. g3
{[%clk 0:02:57.4]} 8... d5 {[%clk 0:02:44.1]} 9. cxd5 {[%clk 0:02:56.6]} 9...
cxd5 {[%clk 0:02:43.8]} 10. Bg2 {[%clk 0:02:53.7]} 10... Rb8 {[%clk 0:02:35.9]}
11. O-O {[%clk 0:02:53.1]} 11... Re8 {[%clk 0:02:16.1]} 12. Bg5 {[%clk
0:02:42.7]} 12... c6 {[%clk 0:02:09.4]} 13. Qd4 {[%clk 0:02:35.9]} 13... Qb6
{[%clk 0:02:01.5]} 14. Bxf6 {[%clk 0:02:34]} 14... gxf6 {[%clk 0:01:54.2]} 15.
Qxf6 {[%clk 0:02:34.9]} 15... Bf8 {[%clk 0:01:34.8]} 16. e3 {[%clk 0:01:56.6]}
16... Bg7 {[%clk 0:01:33.2]} 17. Qg5 {[%clk 0:01:56.2]} 17... h6 {[%clk
0:01:32.2]} 18. Qf4 {[%clk 0:01:56.3]} 18... Qb4 {[%clk 0:01:21.4]} 19. Qc7
{[%clk 0:01:33.2]} 19... Qb6 {[%clk 0:01:12.7]} 20. Qd6 {[%clk 0:01:25.4]} 20...
Ba6 {[%clk 0:00:54.2]} 21. Rfd1 {[%clk 0:01:19.6]} 21... Red8 {[%clk 0:00:35.5]}
22. Qf4 {[%clk 0:01:19.4]} 22... Qb4 {[%clk 0:00:31.9]} 23. Rab1 {[%clk
0:01:14.1]} 23... Qxf4 {[%clk 0:00:31.1]} 24. gxf4 {[%clk 0:01:15]} 24... Bc4
{[%clk 0:00:25.1]} 25. Bf1 {[%clk 0:01:10.8]} 25... Bxc3 {[%clk 0:00:23.9]} 26.
bxc3 {[%clk 0:00:57.4]} 26... Bxa2 {[%clk 0:00:24]} 27. Ra1 {[%clk 0:00:58.3]}
27... Rb2 {[%clk 0:00:23.6]} 28. Rd4 {[%clk 0:00:59.2]} 28... Rdb8 {[%clk
0:00:19.2]} 29. Ra4 {[%clk 0:00:58.7]} 29... Bc4 {[%clk 0:00:15.6]} 30. Bxc4
{[%clk 0:00:55.7]} 30... dxc4 {[%clk 0:00:15.4]} 31. Rxc4 {[%clk 0:00:55.3]}
31... Rb1+ {[%clk 0:00:15.9]} 32. Rxb1 {[%clk 0:00:55.1]} 32... Rxb1+ {[%clk
0:00:16.8]} 33. Kg2 {[%clk 0:00:55.5]} 33... Rb6 {[%clk 0:00:17.7]} 34. Ra4
{[%clk 0:00:55.4]} 34... Rb7 {[%clk 0:00:15.7]} 35. f5 {[%clk 0:00:52.8]} 35...
Kg7 {[%clk 0:00:15.5]} 36. Kf3 {[%clk 0:00:52.7]} 36... Kf6 {[%clk 0:00:16.2]}
37. e4 {[%clk 0:00:53.6]} 37... Ke5 {[%clk 0:00:15.5]} 38. Kg4 {[%clk
0:00:53.5]} 38... f6 {[%clk 0:00:11.9]} 39. f4+ {[%clk 0:00:53.7]} 39... Kd6
{[%clk 0:00:11.8]} 40. Kh5 {[%clk 0:00:54.6]} 40... Rb2 {[%clk 0:00:11]} 41. h4
{[%clk 0:00:53.5]} 41... Rf2 {[%clk 0:00:10.5]} 42. Kxh6 {[%clk 0:00:50.7]}
42... Rxf4 {[%clk 0:00:11.1]} 43. h5 {[%clk 0:00:51.6]} 43... Ke5 {[%clk
0:00:09.1]} 44. Kg6 {[%clk 0:00:48.5]} 44... Rg4+ {[%clk 0:00:09.1]} 45. Kf7
{[%clk 0:00:48.3]} 45... Rh4 {[%clk 0:00:08.8]} 46. Ra5+ {[%clk 0:00:42.4]}
46... Kd6 {[%clk 0:00:07.9]} 47. Kxf6 {[%clk 0:00:41.8]} 47... Rxe4 {[%clk
0:00:08]} 48. h6 {[%clk 0:00:41.7]} 48... Rh4 {[%clk 0:00:07.2]} 49. Kg7 {[%clk
0:00:41.1]} 49... Rg4+ {[%clk 0:00:07.3]} 50. Kf7 {[%clk 0:00:41.6]} 50... Rh4
{[%clk 0:00:07.4]} 51. Kg6 {[%clk 0:00:41.2]} 51... Rg4+ {[%clk 0:00:07.6]} 52.
Kh5 {[%clk 0:00:41.3]} 52... Rg3 {[%clk 0:00:08.2]} 53. Rxa7 {[%clk 0:00:41.8]}
53... Rxc3 {[%clk 0:00:07.7]} 54. h7 {[%clk 0:00:42.3]} 54... Rh3+ {[%clk
0:00:07.6]} 55. Kg6 {[%clk 0:00:42.8]} 55... Ke5 {[%clk 0:00:06.9]} 56. Re7+
{[%clk 0:00:41.6]} 56... Kd6 {[%clk 0:00:06.7]} 57. Re8 {[%clk 0:00:42.5]} 57...
Rg3+ {[%clk 0:00:03.2]} 58. Kf7 {[%clk 0:00:42.4]} 1-0

[Event "*** Titled Tuesday Blitz"]
[Site "Chess.com"]
[Date "2020.05.12"]
[Round "4"]
[White "Escanor89"]
[Black "Islamovqaasim"]
[Result "1-0"]
[WhiteElo "2571"]
[BlackElo "2335"]
[TimeControl "180+1"]
[EndTime "10:39:10 PDT"]
[Termination "Escanor89 won on time"]

1. c4 {[%clk 0:03:00.9]} 1... Nf6 {[%clk 0:02:59.6]} 2. Nc3 {[%clk 0:03:00.3]}
2... e6 {[%clk 0:02:59]} 3. e4 {[%clk 0:03:00]} 3... c5 {[%clk 0:02:57.9]} 4. e5
{[%clk 0:02:55.4]} 4... Ng8 {[%clk 0:02:55.8]} 5. d4 {[%clk 0:02:55.5]} 5...
cxd4 {[%clk 0:02:54.5]} 6. Qxd4 {[%clk 0:02:55.4]} 6... Nc6 {[%clk 0:02:54.4]}
7. Qe4 {[%clk 0:02:55.2]} 7... Bb4 {[%clk 0:02:36.5]} 8. Bd2 {[%clk 0:02:52.8]}
8... Nge7 {[%clk 0:02:35.7]} 9. Nf3 {[%clk 0:02:48.4]} 9... d5 {[%clk
0:02:27.2]} 10. exd6 {[%clk 0:02:44.5]} 10... Qxd6 {[%clk 0:02:25.7]} 11. O-O-O
{[%clk 0:02:38.3]} 11... Qc5 {[%clk 0:02:04.2]} 12. a3 {[%clk 0:02:14.6]} 12...
Bxc3 {[%clk 0:01:47.6]} 13. Bxc3 {[%clk 0:02:14]} 13... O-O {[%clk 0:01:41.9]}
14. Bd3 {[%clk 0:01:56.1]} 14... f5 {[%clk 0:01:21.4]} 15. Qe2 {[%clk
0:01:54.9]} 15... a6 {[%clk 0:01:18.4]} 16. Kb1 {[%clk 0:01:52.6]} 16... Rb8
{[%clk 0:01:15.6]} 17. Rc1 {[%clk 0:01:47.8]} 17... Bd7 {[%clk 0:01:01.7]} 18.
Rhe1 {[%clk 0:01:36.4]} 18... Ng6 {[%clk 0:00:58.9]} 19. g3 {[%clk 0:01:19]}
19... Qd6 {[%clk 0:00:45.6]} 20. Red1 {[%clk 0:01:11.9]} 20... Qc7 {[%clk
0:00:44.5]} 21. h4 {[%clk 0:01:10.3]} 21... Rfe8 {[%clk 0:00:42.7]} 22. h5
{[%clk 0:01:10]} 22... Nf8 {[%clk 0:00:37.4]} 23. Ne5 {[%clk 0:01:09.4]} 23...
Bc8 {[%clk 0:00:28]} 24. h6 {[%clk 0:00:58.1]} 24... g6 {[%clk 0:00:23.6]} 25.
Nxc6 {[%clk 0:00:57.4]} 25... bxc6 {[%clk 0:00:23.5]} 26. Be5 {[%clk 0:00:56]}
26... Qb7 {[%clk 0:00:21.4]} 27. Bxb8 {[%clk 0:00:54.9]} 27... Qxb8 {[%clk
0:00:22.3]} 28. Qe5 {[%clk 0:00:54.9]} 28... Qb7 {[%clk 0:00:19.4]} 29. c5
{[%clk 0:00:50]} 29... Qe7 {[%clk 0:00:15]} 30. Be2 {[%clk 0:00:31.2]} 30... Nd7
{[%clk 0:00:14.6]} 31. Qd6 {[%clk 0:00:28.5]} 31... Qf7 {[%clk 0:00:14.6]} 32.
Qxc6 {[%clk 0:00:26.9]} 32... Ne5 {[%clk 0:00:14]} 33. Qd6 {[%clk 0:00:25.7]}
33... Nd7 {[%clk 0:00:07.8]} 34. c6 {[%clk 0:00:25.3]} 34... Nf6 {[%clk
0:00:07.7]} 35. c7 {[%clk 0:00:24.3]} 35... Bb7 {[%clk 0:00:07.1]} 36. Bxa6
{[%clk 0:00:22.7]} 36... Bd5 {[%clk 0:00:07.1]} 37. c8=Q {[%clk 0:00:19.6]}
37... Rxc8 {[%clk 0:00:06.2]} 38. Rxc8+ {[%clk 0:00:19.1]} 38... Ne8 {[%clk
0:00:05]} 39. Bb5 {[%clk 0:00:18.9]} 39... Be4+ {[%clk 0:00:05.2]} 40. Ka1
{[%clk 0:00:18.3]} 1-0

[Event "*** Titled Tuesday Blitz"]
[Site "Chess.com"]
[Date "2020.05.12"]
[Round "4"]
[White "Anton_Demchenko"]
[Black "HouseOfDurin"]
[Result "1-0"]
[WhiteElo "2825"]
[BlackElo "2018"]
[TimeControl "180+1"]
[EndTime "10:39:11 PDT"]
[Termination "Anton_Demchenko won by resignation"]

1. d4 {[%clk 0:03:00.9]} 1... Nf6 {[%clk 0:02:59.2]} 2. Nf3 {[%clk 0:03:01.1]}
2... c5 {[%clk 0:02:59.7]} 3. d5 {[%clk 0:03:00.9]} 3... b5 {[%clk 0:02:59.8]}
4. Bg5 {[%clk 0:02:59.3]} 4... Ne4 {[%clk 0:02:51.2]} 5. Bf4 {[%clk 0:02:55.9]}
5... d6 {[%clk 0:02:50.7]} 6. Nbd2 {[%clk 0:02:51.8]} 6... Qa5 {[%clk
0:02:40.5]} 7. a4 {[%clk 0:02:49.2]} 7... Nxd2 {[%clk 0:02:27.6]} 8. Bxd2 {[%clk
0:02:47.4]} 8... b4 {[%clk 0:02:27.6]} 9. e4 {[%clk 0:02:42.7]} 9... g6 {[%clk
0:02:22.6]} 10. e5 {[%clk 0:02:20.8]} 10... dxe5 {[%clk 0:02:07.7]} 11. Nxe5
{[%clk 0:02:14]} 11... Bg7 {[%clk 0:02:07.7]} 12. Bb5+ {[%clk 0:02:12.8]} 12...
Bd7 {[%clk 0:02:07.8]} 13. Nxd7 {[%clk 0:01:56.9]} 13... Nxd7 {[%clk 0:02:08.7]}
14. O-O {[%clk 0:01:56.4]} 14... O-O-O {[%clk 0:01:52.6]} 15. c3 {[%clk
0:01:48.5]} 15... a6 {[%clk 0:01:14.5]} 16. cxb4 {[%clk 0:01:44.5]} 16... cxb4
{[%clk 0:01:14.7]} 17. Rc1+ {[%clk 0:01:33.4]} 17... Kb8 {[%clk 0:01:14.5]} 18.
Bc6 {[%clk 0:01:23.8]} 18... Be5 {[%clk 0:01:03]} 19. Qg4 {[%clk 0:01:18.8]}
19... f5 {[%clk 0:01:00.3]} 20. Qh4 {[%clk 0:00:39.7]} 20... Bd6 {[%clk
0:00:58.7]} 21. Rc4 {[%clk 0:00:37.8]} 21... Ne5 {[%clk 0:00:53]} 22. Bxb4
{[%clk 0:00:27.9]} 22... g5 {[%clk 0:00:24.5]} 23. Bxa5 {[%clk 0:00:14]} 23...
gxh4 {[%clk 0:00:24.2]} 24. Rxh4 {[%clk 0:00:14.3]} 24... Nxc6 {[%clk
0:00:21.3]} 25. dxc6 {[%clk 0:00:13.8]} 25... Bc7 {[%clk 0:00:21.4]} 26. Rb4+
{[%clk 0:00:10.8]} 26... Kc8 {[%clk 0:00:20.3]} 27. Bxc7 {[%clk 0:00:10.8]}
27... Kxc7 {[%clk 0:00:21.1]} 28. Rb7+ {[%clk 0:00:11.5]} 28... Kxc6 {[%clk
0:00:21.5]} 29. Rxe7 {[%clk 0:00:11.8]} 29... Rhe8 {[%clk 0:00:18.9]} 30. Rc1+
{[%clk 0:00:11.4]} 30... Kb6 {[%clk 0:00:17.6]} 31. Rxh7 {[%clk 0:00:11.5]}
31... Re2 {[%clk 0:00:16.5]} 32. b4 {[%clk 0:00:08.5]} 32... Red2 {[%clk
0:00:12.9]} 33. Rh6+ {[%clk 0:00:07.2]} 33... R8d6 {[%clk 0:00:12.9]} 34. Rxd6+
{[%clk 0:00:06.3]} 34... Rxd6 {[%clk 0:00:13.8]} 35. g3 {[%clk 0:00:06]} 35...
Rd4 {[%clk 0:00:13.9]} 36. Rb1 {[%clk 0:00:06.5]} 36... a5 {[%clk 0:00:12.8]}
37. bxa5+ {[%clk 0:00:06.4]} 37... Kxa5 {[%clk 0:00:13.1]} 38. Rb5+ {[%clk
0:00:06.6]} 38... Kxa4 {[%clk 0:00:13.4]} 39. Rxf5 {[%clk 0:00:07.5]} 39... Kb4
{[%clk 0:00:13.7]} 40. Rf4 {[%clk 0:00:06.1]} 40... Rxf4 {[%clk 0:00:13.4]} 41.
gxf4 {[%clk 0:00:07]} 41... Kc5 {[%clk 0:00:14]} 42. Kg2 {[%clk 0:00:07.6]}
42... Kd6 {[%clk 0:00:14.7]} 43. Kf3 {[%clk 0:00:08.2]} 43... Ke6 {[%clk
0:00:15.1]} 44. Kg4 {[%clk 0:00:08.9]} 44... Kf7 {[%clk 0:00:16]} 45. Kg5 {[%clk
0:00:09]} 45... Kg8 {[%clk 0:00:16.9]} 46. Kg6 {[%clk 0:00:09.2]} 46... Kh8
{[%clk 0:00:17.8]} 47. f5 {[%clk 0:00:09.5]} 47... Kg8 {[%clk 0:00:18.6]} 48. f6
{[%clk 0:00:10]} 48... Kf8 {[%clk 0:00:19.4]} 49. f7 {[%clk 0:00:09.6]} 49...
Ke7 {[%clk 0:00:18.9]} 50. Kg7 {[%clk 0:00:10.1]} 1-0

[Event "*** Titled Tuesday Blitz"]
[Site "Chess.com"]
[Date "2020.05.12"]
[Round "4"]
[White "Colombiano07"]
[Black "TokChess"]
[Result "0-1"]
[WhiteElo "2191"]
[BlackElo "2432"]
[TimeControl "180+1"]
[EndTime "10:39:11 PDT"]
[Termination "TokChess won by checkmate"]

1. d4 {[%clk 0:02:57.1]} 1... Nf6 {[%clk 0:02:59.3]} 2. Nf3 {[%clk 0:02:55.7]}
2... g6 {[%clk 0:02:56.5]} 3. Bf4 {[%clk 0:02:55.2]} 3... Bg7 {[%clk 0:02:56.5]}
4. e3 {[%clk 0:02:53.7]} 4... O-O {[%clk 0:02:56.2]} 5. h3 {[%clk 0:02:54.3]}
5... d5 {[%clk 0:02:56.4]} 6. Bd3 {[%clk 0:02:52.7]} 6... c5 {[%clk 0:02:54.7]}
7. O-O {[%clk 0:02:53.1]} 7... b6 {[%clk 0:02:54.9]} 8. c3 {[%clk 0:02:53.1]}
8... Bb7 {[%clk 0:02:55.3]} 9. a4 {[%clk 0:02:53.4]} 9... a6 {[%clk 0:02:50.9]}
10. Nbd2 {[%clk 0:02:53.6]} 10... Nbd7 {[%clk 0:02:51.1]} 11. Ne5 {[%clk
0:02:51.4]} 11... Ne4 {[%clk 0:02:46.8]} 12. Nxd7 {[%clk 0:02:49.1]} 12... Qxd7
{[%clk 0:02:47.7]} 13. a5 {[%clk 0:02:43.9]} 13... Nxd2 {[%clk 0:02:44.5]} 14.
Qxd2 {[%clk 0:02:43.9]} 14... c4 {[%clk 0:02:44.4]} 15. Be2 {[%clk 0:02:42.3]}
15... b5 {[%clk 0:02:44.6]} 16. Bf3 {[%clk 0:02:42.4]} 16... Bc6 {[%clk
0:02:38.7]} 17. Rfe1 {[%clk 0:02:40]} 17... Rfe8 {[%clk 0:02:08.4]} 18. e4
{[%clk 0:02:38.8]} 18... dxe4 {[%clk 0:02:09]} 19. Bxe4 {[%clk 0:02:39.7]} 19...
Bxe4 {[%clk 0:02:09.3]} 20. Rxe4 {[%clk 0:02:40.6]} 20... e5 {[%clk 0:02:08.7]}
21. Be3 {[%clk 0:02:01.1]} 21... f5 {[%clk 0:01:56.6]} 22. Rh4 {[%clk
0:01:51.7]} 22... f4 {[%clk 0:01:50]} 23. Bxf4 {[%clk 0:01:50.1]} 23... exf4
{[%clk 0:01:49.4]} 24. Qxf4 {[%clk 0:01:51]} 24... Rf8 {[%clk 0:01:44.8]} 25.
Qg3 {[%clk 0:01:46]} 25... Rae8 {[%clk 0:01:42.6]} 26. Rf4 {[%clk 0:01:41.8]}
26... Rxf4 {[%clk 0:01:32.1]} 27. Qxf4 {[%clk 0:01:41.8]} 27... Qf7 {[%clk
0:01:32.8]} 28. Qd6 {[%clk 0:01:41.1]} 28... Qe6 {[%clk 0:01:23.5]} 29. Qc7
{[%clk 0:01:40.7]} 29... Rf8 {[%clk 0:01:15.9]} 30. Rd1 {[%clk 0:01:37.2]} 30...
Qe2 {[%clk 0:01:11.8]} 31. Rf1 {[%clk 0:01:33.5]} 31... Qxb2 {[%clk 0:01:05.5]}
32. d5 {[%clk 0:01:33.1]} 32... Qxc3 {[%clk 0:01:01.4]} 33. d6 {[%clk
0:01:33.6]} 33... Qd4 {[%clk 0:01:00.7]} 34. d7 {[%clk 0:01:33.5]} 34... c3
{[%clk 0:00:56]} 35. Qc6 {[%clk 0:01:33.2]} 35... Qf6 {[%clk 0:00:34.1]} 36.
Qd5+ {[%clk 0:01:30.9]} 36... Kh8 {[%clk 0:00:28.4]} 37. Qd3 {[%clk 0:01:24.7]}
37... b4 {[%clk 0:00:23]} 38. Kh1 {[%clk 0:01:20.4]} 38... Rd8 {[%clk
0:00:15.1]} 39. Rb1 {[%clk 0:01:18.1]} 39... c2 {[%clk 0:00:11.5]} 40. Qxc2
{[%clk 0:01:17.6]} 40... Rxd7 {[%clk 0:00:11.7]} 41. Rxb4 {[%clk 0:01:16.2]}
41... Rd8 {[%clk 0:00:10]} 42. Rb6 {[%clk 0:01:12.8]} 42... Qa1+ {[%clk
0:00:09]} 43. Kh2 {[%clk 0:01:12.9]} 43... Qe5+ {[%clk 0:00:09.4]} 44. g3 {[%clk
0:01:13.1]} 44... Rf8 {[%clk 0:00:07.3]} 45. Rxa6 {[%clk 0:01:11.8]} 45... Qd4
{[%clk 0:00:06.3]} 46. Kg1 {[%clk 0:01:01.8]} 46... g5 {[%clk 0:00:05.8]} 47.
Rc6 {[%clk 0:00:59.8]} 47... Qb4 {[%clk 0:00:05.2]} 48. Rc8 {[%clk 0:00:58.1]}
48... Rxc8 {[%clk 0:00:03.5]} 49. Qxc8+ {[%clk 0:00:59]} 49... Qf8 {[%clk
0:00:03.9]} 50. Qb7 {[%clk 0:00:52.4]} 50... h6 {[%clk 0:00:04.2]} 51. a6 {[%clk
0:00:52.7]} 51... Bd4 {[%clk 0:00:03.1]} 52. a7 {[%clk 0:00:50.7]} 52... Qxf2+
{[%clk 0:00:02.8]} 53. Kh1 {[%clk 0:00:31.8]} 53... Qg1# {[%clk 0:00:03.7]} 0-1